fUSD/lending_fUSD_20240626
["ID","MTS","AMOUNT","RATE_DAILY","PERIOD"]
[330440730,1719408643646,-180.20700511,0.000219,2]
[330440731,1719408643660,-500.0,0.000219,2]
[330440732,1719408643670,-58000.0,0.000219,2]
[330440733,1719408643679,-150.0,0.000219,2]
[330440734,1719408643688,-355.0,0.000219,2]
[330440735,1719408643700,-1000.0,0.000219,2]
[330440736,1719408643709,-331.48168264,0.000219,2]
[330440737,1719408643719,-225.0,0.000219,2]
[330440738,1719408643730,-38815.10616287,0.000219,2]
[330440739,1719408643739,-7144.56791442,0.000219,2]
[330440740,1719408643749,-1280.63269677,0.000219,2]
[330440741,1719408643759,-150.0,0.00021902,2]
[330440742,1719408643768,-150.0,0.00021904,2]
[330440743,1719408643778,-230.5,0.00021908,2]
[330440744,1719408643788,-150.0,0.00021909,2]
[330440745,1719408643798,-150.0,0.0002191,2]
[330440746,1719408643807,-150.0,0.00021911,2]
[330440747,1719408643817,-150.0,0.00021913,2]
[330440748,1719408643827,-150.0,0.00021916,2]
[330440749,1719408643836,-694.71,0.00021918,2]
[330440750,1719408643845,-157.88,0.00021918,2]
[330440751,1719408643855,-150.0,0.00021918,2]
[330440752,1719408643864,-150.0,0.00021918,2]
[330440753,1719408643875,-150.0,0.00021918,2]
[330440754,1719408643884,-150.0,0.00021918,2]
[330440755,1719408643893,-150.0,0.00021918,2]
[330440756,1719408643902,-150.0,0.00021918,2]
[330440757,1719408643911,-150.0,0.00021918,2]
[330440758,1719408643921,-150.0,0.00021918,2]
[330440759,1719408643930,-150.0,0.00021918,2]
[330440760,1719408643939,-150.0,0.00021918,2]
[330440761,1719408643949,-150.0,0.00021918,2]
[330440762,1719408643959,-150.0,0.00021918,2]
[330440763,1719408643968,-150.0,0.00021918,2]
[330440764,1719408643977,-150.0,0.00021918,2]
[330440765,1719408643986,-150.0,0.00021918,2]
[330440766,1719408643996,-150.0,0.00021918,2]
[330440767,1719408644005,-150.0,0.00021918,2]
[330440768,1719408644015,-200.68983234,0.00021918,2]
[330440769,1719408644025,-150.0,0.00021918,2]
[330440770,1719408644035,-150.0,0.00021918,2]
[330440771,1719408644045,-150.0,0.00021918,2]
[330440772,1719408644054,-150.0,0.00021918,2]
[330440773,1719408644065,-150.0,0.00021918,2]
[330440774,1719408644074,-150.0,0.00021918,2]
[330440775,1719408644083,-150.0,0.00021918,2]
[330440776,1719408644093,-150.0,0.00021918,2]
[330440777,1719408644102,-150.0,0.00021918,2]
[330440778,1719408644111,-150.0,0.00021918,2]
[330440779,1719408644120,-150.0,0.00021918,2]
[330440780,1719408644129,-150.0,0.00021918,2]
[330440781,1719408644138,-150.0,0.00021918,2]
[330440782,1719408644148,-150.0,0.00021918,2]
[330440783,1719408644157,-150.0,0.00021918,2]
[330440784,1719408644166,-150.0,0.00021918,2]
[330440785,1719408644176,-150.0,0.00021918,2]
[330440786,1719408644185,-150.0,0.00021918,2]
[330440787,1719408644194,-150.0,0.00021918,2]
[330440788,1719408644205,-150.0,0.00021918,2]
[330440789,1719408644214,-155.68315644,0.00021918,2]
[330440790,1719408644223,-150.0,0.00021921,2]
[330440791,1719408644232,-150.0,0.00021923,2]
[330440792,1719408644241,-150.0,0.00021923,2]
[330440793,1719408644250,-150.0,0.00021927,2]
[330440794,1719408644259,-150.0,0.00021927,2]
[330440795,1719408644268,-150.0,0.00021931,2]
[330440796,1719408644277,-150.0,0.00021932,2]
[330440797,1719408644286,-150.0,0.00021938,2]
[330440798,1719408644296,-150.0,0.00021941,2]
[330440799,1719408644305,-150.0,0.00021948,2]
[330440800,1719408644314,-150.0,0.0002195,2]
[330440801,1719408644323,-150.0,0.0002195,2]
[330440802,1719408644333,-150.0,0.00021952,2]
[330440803,1719408644343,-150.0,0.00021954,2]
[330440804,1719408644352,-150.0,0.00021955,2]
[330440805,1719408644362,-150.0,0.00021956,2]
[330440806,1719408644372,-150.0,0.00021958,2]
[330440807,1719408644382,-150.0,0.00021958,2]
[330440808,1719408644393,-375.0,0.0002196,2]
[330440809,1719408644405,-150.0,0.00021967,2]
[330440810,1719408644414,-150.0,0.0002197,2]
[330440811,1719408644424,-150.0,0.0002197,2]
[330440812,1719408644434,-150.0,0.00021976,2]
[330440813,1719408644445,-150.0,0.00021977,2]
[330440814,1719408644456,-523.35652933,0.00021977,2]
[330440815,1719408644466,-339.45186376,0.00021977,2]
[330440816,1719408644475,-150.0,0.00021983,2]
[330440817,1719408644488,-150.0,0.00021986,2]
[330440818,1719408644497,-230.5,0.00021987,2]
[330440819,1719408644508,-2000.0,0.00021989,7]
[330440820,1719408644518,-789.32,0.00021989,7]
[330440821,1719408644527,-150.0,0.00021994,2]
[330440822,1719408644536,-150.0,0.00021996,2]
[330440823,1719408644546,-922.9379451,0.00021997,2]
[330440824,1719408644555,-2418.7288063,0.00021997,2]
[330440825,1719408644564,-13291.3280249,0.00021997,2]
[330440826,1719408644574,-8277.9258173,0.00021997,2]
[330440827,1719408644583,-26131.0515802,0.00021997,2]
[330440828,1719408644592,-1341.7105576,0.00021997,2]
[330440829,1719408644602,-4509.1867886,0.00021997,2]
[330440830,1719408644611,-10831.7534521,0.00021997,2]
[330440831,1719408644620,-209.08499402,0.00021998,2]
[330440832,1719408644630,-1686.93165593,0.00021998,2]
[330440833,1719408644639,-1000.0,0.00021999,2]
[330440834,1719408644653,-1000.0,0.00021999,2]
[330440835,1719408644663,-1000.0,0.00021999,2]
[330440836,1719408644672,-1000.0,0.00021999,2]
[330440837,1719408644681,-757.7690325,0.00021999,2]
[330440838,1719408644691,-150.0,0.00021999,2]
[330440839,1719408644702,-18161.79026361,0.00022,7]
[330440840,1719408644711,-5399032.80325155,0.00022,4]
[330440841,1719408644811,-230.5,0.0002199,2]
[330440842,1719408644821,-509.49109435,0.00022,4]
[330440843,1719408644933,-230.5,0.0002199,2]
[330440844,1719408644943,-289631.0584722,0.00022,4]
[330440845,1719408644955,-359.48000001,0.00022,4]
[330440846,1719408644966,-588.25655239,0.00022,4]
[330440847,1719408645157,-526.48485008,0.00021789,2]
[330440848,1719408645166,-230.5,0.0002199,2]
[330440849,1719408645175,-17145.19512753,0.00022,4]
[330440863,1719408646650,-155.17356214,0.0001952,2]
[330440864,1719408648678,-155.0,0.00016307,4]
[330440865,1719408648687,-426.02513369,0.0001952,2]
[330440866,1719408648699,-691.80130417,0.0001952,2]
[330440867,1719408648712,-164.67,0.00021205,2]
[330440868,1719408648721,-262.23521895,0.00021729,2]
[330440869,1719408648736,-237.76478105,0.00021729,2]
[330440870,1719408648747,-500.0,0.00021729,2]
[330440871,1719408648757,-500.0,0.00021729,2]
[330440872,1719408648766,-174.93599078,0.00021729,2]
[330440873,1719408648778,-325.06400922,0.00021729,2]
[330440874,1719408648787,-175.4236364,0.00021729,2]
[330440875,1719408648800,-324.5763636,0.00021729,2]
[330440876,1719408648809,-500.0,0.00021729,2]
[330440877,1719408648819,-332.14314181,0.00021729,2]
[330440878,1719408648828,-387.03749459,0.00021729,2]
[330440879,1719408648862,-112.96250541,0.00021729,2]
[330440880,1719408648872,-357.26096976,0.00021729,2]
[330440881,1719408795593,200.0,0.00025831,120]
[330440882,1719408854204,475.15035257,0.00011,2]
[330440883,1719408896525,951.67054626,0.00013333,2]
[330440884,1719408913592,671.24,0.0001399,3]
[330440886,1719409113891,253.90432169,0.00013917,2]
[330440887,1719409155773,39.41445952,0.000139,2]
[330440888,1719409155797,10000.0,0.000139,2]
[330440890,1719409226668,-92775.76184048,0.000139,2]
[330440891,1719409226694,-318.15881835,0.00013945,2]
[330440892,1719409226721,-3860906.07934117,0.00014,2]
[330440893,1719409294415,150.0,5e-05,2]
[330440894,1719409294437,21.44602305,5e-05,2]
[330440895,1719409330557,150.0,5e-05,2]
[330440896,1719409330580,140.40046711,5e-05,2]
[330440897,1719409332198,150.0,5e-05,2]
[330440898,1719409332220,5.0,5e-05,2]
[330440899,1719409332319,145.0,6.061e-05,2]
[330440900,1719409332342,150.0,6.061e-05,2]
[330440901,1719409332364,5.0,6.061e-05,2]
[330440902,1719409337802,150.0,5e-05,2]
[330440903,1719409337825,5.0,5e-05,2]
[330440904,1719409352508,150.0,5e-05,2]
[330440905,1719409352530,99.62568508,5e-05,2]
[330440906,1719409359179,263.35800948,5e-05,2]
[330440907,1719409367063,150.0,6.061e-05,2]
[330440908,1719409367090,140.40046711,6.061e-05,2]
[330440909,1719409370612,9.59953289,6.061e-05,2]
[330440910,1719409370635,150.0,6.061e-05,2]
[330440911,1719409370659,150.0,6.061e-05,2]
[330440912,1719409370682,150.0,6.061e-05,2]
[330440913,1719409370704,69.65628028,6.061e-05,2]
[330440914,1719409384880,150.0,6.061e-05,2]
[330440915,1719409384905,150.0,6.061e-05,2]
[330440916,1719409384927,150.0,6.061e-05,2]
[330440917,1719409384948,100.7403275,6.061e-05,2]
[330440918,1719409385214,49.2596725,6.061e-05,2]
[330440919,1719409385236,137.20440887,6.061e-05,2]
[330440920,1719409385473,12.79559113,6.061e-05,2]
[330440921,1719409385511,150.0,6.061e-05,2]
[330440922,1719409385533,150.0,6.061e-05,2]
[330440923,1719409385556,123.89306381,6.061e-05,2]
[330440924,1719409385609,26.10693619,6.061e-05,2]
[330440925,1719409385631,150.0,6.061e-05,2]
[330440926,1719409385653,116.19196608,6.061e-05,2]
[330440927,1719409389904,150.0,6.061e-05,2]
[330440928,1719409389926,94.14427434,6.061e-05,2]
[330440929,1719409390305,256.00034313,6.061e-05,2]
[330440930,1719409392434,750.0,6.061e-05,2]
[330440931,1719409402684,298.00352017,6.061e-05,2]
[330440932,1719409402719,165.09,0.0001,2]
[330440933,1719409407712,150.0,6.061e-05,2]
[330440934,1719409407739,5.29796002,6.061e-05,2]
[330440935,1719409415922,150.0,6.061e-05,2]
[330440936,1719409415945,580.91804313,6.061e-05,2]
[330440937,1719409416661,232.84576427,6.061e-05,2]
[330440938,1719409420404,150.0,6.061e-05,2]
[330440939,1719409420425,150.0,6.061e-05,2]
[330440940,1719409420446,81.92908314,6.061e-05,2]
[330440942,1719409431642,150.0,7.347e-05,2]
[330440943,1719409431672,150.0,7.347e-05,2]
[330440945,1719409434966,150.0,6.061e-05,2]
[330440946,1719409434989,150.0,6.061e-05,2]
[330440947,1719409435012,150.0,6.061e-05,2]
[330440948,1719409435365,150.0,7.347e-05,2]
[330440949,1719409435391,150.0,7.347e-05,2]
[330440950,1719409435413,150.0,7.347e-05,2]
[330440951,1719409435437,240.31547705,7.347e-05,2]
[330440952,1719409435459,3764.21432992,7.347e-05,2]
[330440953,1719409453058,150.0,7.347e-05,2]
[330440954,1719409453082,150.0,7.347e-05,2]
[330440955,1719409453522,150.0,7.347e-05,2]
[330440956,1719409465186,300.0,7.347e-05,2]
[330440957,1719409477031,150.0,7.347e-05,2]
[330440958,1719409477052,5.5348255,7.347e-05,2]
[330440959,1719409498970,163.9,0.00025339,120]
[330440960,1719409510004,144.4651745,8.905e-05,2]
[330440961,1719409510028,49.78126122,8.905e-05,2]
[330440962,1719409521708,100.21873878,8.905e-05,2]
[330440963,1719409521730,150.0,8.905e-05,2]
[330440964,1719409521751,150.0,8.905e-05,2]
[330440965,1719409521774,150.0,8.905e-05,2]
[330440966,1719409521796,49.78126122,8.905e-05,2]
[330440967,1719409535925,100.21873878,0.00010794,2]
[330440968,1719409535954,394.02769694,0.00010794,2]
[330440969,1719409567381,236.69559536,0.00010794,2]
[330440975,1719409802871,150.0,0.00010794,2]
[330440976,1719409803070,150.0,0.00010794,2]
[330440977,1719409803331,150.0,0.00010794,2]
[330440978,1719409803550,150.0,0.00010794,2]
[330440979,1719409803750,211.44859975,0.00010794,2]
[330440988,1719409832413,-167.6,0.00011354,2]
[330440989,1719409832426,-174.15,0.00011893,2]
[330440990,1719409832440,-657.8885039,0.00012881,2]
[330440991,1719409832450,-5905.14851709,0.00012882,2]
[330440992,1719409832458,-3095.21823356,0.00012948,2]
[330440993,1719409832470,-2809.93028353,0.00012948,2]
[330440995,1719409832479,-1821.16971647,0.00013013,2]
[330440998,1719409832608,-383.43234045,0.00013013,2]
[330440999,1719409832620,-2015.05034501,0.00013013,2]
[330441000,1719409832631,-1685.49611516,0.00013013,2]
[330441001,1719409832640,-3789.55797518,0.00013083,2]
[330441002,1719409832650,-5036.19449053,0.00013083,2]
[330441003,1719409832661,-364.67036088,0.00013083,2]
[330441008,1719409832831,-2146.10997049,0.00013083,2]
[330441009,1719409832841,-905.69002951,0.00013083,2]
[330441010,1719409832853,-1375.39928232,0.00013083,2]
[330441011,1719409832863,-512.18,0.00013346,2]
[330441012,1719409832872,-4952.685598,0.00013645,2]
[330441013,1719409832881,-300.0,0.00013713,2]
[330441014,1719409832890,-4429.57865472,0.00013714,2]
[330441015,1719409832902,-408.28683777,0.00013714,2]
[330441026,1719409840055,-362.26956143,0.00013714,2]
[330441029,1719409840068,-498.35828287,0.00013714,2]
[330441031,1719409840080,-1801.8322682,0.00013714,2]
[330441033,1719409840092,-14833.63414008,0.00013714,2]
[330441037,1719409840113,-1566.04025493,0.00013714,2]
[330441038,1719409840123,-150.0,0.00013756,2]
[330441040,1719409840132,-300.0,0.00013756,2]
[330441041,1719409840142,-631.11657923,0.000139,2]
[330441042,1719409840154,-1102.27149245,0.000139,2]
[330441043,1719409840164,-168.64788994,0.000139,2]
[330441044,1719409840173,-1688.69465038,0.00013985,2]
[330441045,1719409840186,-4095.98626351,0.00013985,2]
[330441046,1719409840280,-2033.01980657,0.00013985,2]
[330441047,1719409840292,-2190.69830545,0.00013985,2]
[330441048,1719409840304,-938.90308903,0.00013985,2]
[330441049,1719409840315,-535.43603324,0.00013985,2]
[330441050,1719409840327,-407.20575014,0.00013985,2]
[330441066,1719409841130,-12231.6144,0.00013985,2]
[330441067,1719409841142,-574.25832205,0.00013985,2]
[330441068,1719409841152,-18220.96677571,0.00013986,2]
[330441069,1719409841161,-10539.90134862,0.00013986,2]
[330441070,1719409841170,-22506.76084937,0.00013987,2]
[330441071,1719409841312,-300.0495264,0.00013987,2]
[330441072,1719409841469,-402.03620173,0.00013987,2]
[330441073,1719409841481,-515.1,0.00013987,2]
[330441074,1719409841494,-1510.22572597,0.00013987,2]
[330441075,1719409841503,-161.46257512,0.00013987,2]
[330441076,1719409841512,-14050.62109455,0.00013988,2]
[330441077,1719409841522,-276.2772852,0.00013991,2]
[330441078,1719409841532,-380.19442756,0.00013999,2]
[330441079,1719409841542,-73292.42972662,0.00014,2]
[330441096,1719409843258,-500.32600203,0.00014,2]
[330441098,1719409843271,-30869.3361,0.00014,2]
[330441099,1719409843282,-2340.05999486,0.00014,2]
[330441100,1719409843440,-770.78849244,0.00014,2]
[330441101,1719409843452,-7812.08862106,0.00014,2]
[330441102,1719409843465,-1596.30903577,0.00014,2]
[330441104,1719409843695,-15482.65349999,0.00014,2]
[330441106,1719409843707,-2177.31416717,0.00014,2]
[330441128,1719409846318,-333.55822375,0.00012947,2]
[330441129,1719409846330,-324.33028015,0.00012947,2]
[330441130,1719409846340,-4336.59596011,0.00013984,2]
[330441131,1719409846479,-349.11712602,0.00013984,2]
[330441132,1719409846549,-2992.58418103,0.00013984,2]
[330441133,1719409846562,-7584.0,0.00013984,2]
[330441134,1719409846575,-2958.66950855,0.00013984,2]
[330441135,1719409846585,-8397.6428265,0.00014,2]
[330441136,1719409846598,-281.00881241,0.00014,2]
[330441137,1719409846610,-500.0,0.00014,2]
[330441138,1719409846621,-811.34468112,0.00014,2]
[330441139,1719409846633,-1981.0,0.00014,2]
[330441140,1719409846646,-906.90062048,0.00014,2]
[330441142,1719409866361,-300.0,0.00013999,2]
[330441143,1719409866393,-31650.0,0.00014,2]
[330441144,1719409994564,200.0,0.00025949,120]
[330441149,1719410137119,500.0,0.00026,120]
[330441154,1719410185445,500.0,0.00026,120]
[330441157,1719410216279,170.65,0.00025855,120]
[330441165,1719410867463,1000.0,0.00026,120]
[330441170,1719411016405,1263.2464365,0.00011799,2]
[330441175,1719411032580,8736.7535635,0.00011799,2]
[330441176,1719411032614,942.97511865,0.00011799,2]
[330441178,1719411033611,-935.99632994,0.00012991,2]
[330441179,1719411033671,-797.37400748,0.00012991,2]
[330441180,1719411033682,-819.28,0.00012991,2]
[330441181,1719411033693,-275.80240744,0.00012991,2]
[330441182,1719411033702,-174.15,0.00013229,2]
[330441183,1719411033712,-202.49463357,0.0001372,2]
[330441184,1719411033721,-9969.2288201,0.00013899,2]
[330441185,1719411033730,-150.0,0.000139,2]
[330441186,1719411033739,-1658.26938129,0.000139,2]
[330441187,1719411033752,-86.70705838,0.000139,2]
[330441188,1719411033762,-168.64788992,0.000139,2]
[330441189,1719411033772,-1797.52994335,0.00014,2]
[330441190,1719411034600,-380.03886704,0.00014,2]
[330441191,1719411034647,-17.1884956,0.00014,2]
[330441192,1719411034658,-432.57938179,0.00014,2]
[330441193,1719411034748,-317.65,0.00014,2]
[330441194,1719411034759,-1035.17422718,0.00014,2]
[330441195,1719411034771,-91322.68976915,0.00014,2]
[330441196,1719411038569,-1269.62890364,0.00013394,2]
[330441197,1719411038580,-6251.46109636,0.00014,2]
[330441200,1719411040500,-27441.43868665,0.00014,2]
[330441202,1719411040510,-6062.931,0.00014,2]
[330441204,1719411040522,-1433.09781,0.00014,2]
[330441206,1719411040531,-3032.4,0.00014,2]
[330441208,1719411040541,-499.99,0.00014335,2]
[330441209,1719411040551,-6221.87942226,0.00014444,2]
[330441210,1719411040560,-7436.15892644,0.00014692,2]
[330441211,1719411040570,-366.11090361,0.00014693,2]
[330441212,1719411040580,-18220.96677571,0.00014693,2]
[330441213,1719411040590,-1069.67493178,0.00014693,2]
[330441214,1719411040600,-2199.43685472,0.00014694,2]
[330441215,1719411040610,-658.55437021,0.00014695,2]
[330441216,1719411040619,-307.9844612,0.00014696,2]
[330441217,1719411040629,-1744.97643959,0.00014789,2]
[330441218,1719411040639,-587.8,0.00014854,2]
[330441219,1719411040650,-3965.70350846,0.00015,2]
[330441220,1719411040661,-5000.0,0.00015,2]
[330441221,1719411040671,-168.64788992,0.00015233,2]
[330441222,1719411040682,-1744.97643959,0.00015678,2]
[330441223,1719411040698,-23900.0,0.00016429,2]
[330441224,1719411040708,-902.09,0.00016566,2]
[330441225,1719411040719,-1744.97643959,0.00016567,2]
[330441226,1719411040729,-168.64788992,0.00016567,2]
[330441227,1719411040740,-1395.83,0.00016571,2]
[330441228,1719411040750,-1087.8,0.00016614,2]
[330441229,1719411040762,-191.48,0.00016633,2]
[330441230,1719411040772,-150.0,0.00016641,2]
[330441231,1719411040782,-155.88,0.00016642,2]
[330441232,1719411040792,-250.0,0.0001665,2]
[330441233,1719411040802,-600.0,0.00016701,2]
[330441234,1719411040812,-500.0,0.00016702,2]
[330441235,1719411040821,-155.88,0.00016704,2]
[330441236,1719411040831,-155.88,0.00016766,2]
[330441237,1719411040841,-168.18,0.00016772,2]
[330441238,1719411040851,-250.0,0.00016773,2]
[330441239,1719411040861,-607.54,0.000168,2]
[330441240,1719411040870,-155.88,0.00016828,2]
[330441241,1719411040880,-2000.0,0.00016841,3]
[330441242,1719411040889,-155.88,0.0001689,2]
[330441243,1719411040899,-163.9,0.00016893,2]
[330441244,1719411040908,-155.88,0.00016952,2]
[330441246,1719411040918,-155.88,0.00017014,2]
[330441248,1719411040927,-155.88,0.00017076,2]
[330441250,1719411040939,-256.77,0.00017081,2]
[330441252,1719411040948,-200.0,0.00017083,2]
[330441254,1719411040958,-587.8,0.00017117,2]
[330441256,1719411040968,-155.88,0.00017138,2]
[330441258,1719411040978,-400.0,0.00017192,2]
[330441260,1719411040988,-155.88,0.000172,2]
[330441262,1719411040998,-170.65,0.00017236,2]
[330441264,1719411041007,-166.35,0.00017243,2]
[330441266,1719411041017,-4713.24960871,0.00017259,2]
[330441268,1719411041027,-155.88,0.00017262,2]
[330441270,1719411041037,-155.88,0.00017324,2]
[330441272,1719411041046,-155.88,0.00017385,2]
[330441274,1719411041055,-155.88,0.00017447,2]
[330441276,1719411041064,-1744.97643959,0.00017456,2]
[330441277,1719411041074,-155.88,0.00017509,2]
[330441279,1719411041083,-167.0,0.00017751,2]
[330441282,1719411041093,-168.64788992,0.000179,2]
[330441284,1719411041102,-2218.0335,0.00017945,2]
[330441286,1719411041112,-328.45118823,0.00018343,2]
[330441288,1719411041121,-1744.97643959,0.00018344,2]
[330441290,1719411041130,-162.92302052,0.00018788,2]
[330441292,1719411041140,-600.0,0.00018789,2]
[330441294,1719411041149,-216.65346206,0.00018999,2]
[330441296,1719411041159,-1433.09781,0.00019,2]
[330441298,1719411041168,-196.20443442,0.00019118,2]
[330441300,1719411041177,-300.0,0.00019119,2]
[330441302,1719411041189,-250.0,0.00019178,2]
[330441305,1719411041199,-1744.97643959,0.00019233,2]
[330441307,1719411041208,-168.64788992,0.00019233,2]
[330441309,1719411041217,-300.0,0.00019296,2]
[330441311,1719411041230,-2517.0,0.000193,3]
[330441313,1719411041239,-400.0,0.00019341,2]
[330441314,1719411041248,-587.8,0.00019381,2]
[330441315,1719411041257,-540.0,0.00019474,2]
[330441316,1719411041267,-641.0,0.000195,3]
[330441317,1719411041276,-600.0,0.0002,2]
[330441318,1719411041286,-621.10790904,0.0002,2]
[330441319,1719411041295,-5166.0,0.000201,2]
[330441320,1719411041305,-1069.0,0.000201,2]
[330441321,1719411041314,-1744.97643959,0.00020122,2]
[330441322,1719411041323,-30603.0,0.0002022,2]
[330441323,1719411041333,-3591.38319706,0.00020319,2]
[330441324,1719411041346,-2004.62544403,0.00020319,2]
[330441325,1719411041356,-1271.0,0.0002032,2]
[330441326,1719411041365,-357.0,0.0002032,2]
[330441327,1719411041374,-1655.0,0.0002032,2]
[330441328,1719411041384,-1830.0,0.0002032,2]
[330441329,1719411041394,-812.0,0.0002032,2]
[330441330,1719411041404,-443.0,0.0002032,2]
[330441331,1719411041413,-616.0,0.0002032,2]
[330441332,1719411041423,-448.0,0.0002032,2]
[330441333,1719411041432,-2411.0,0.0002032,2]
[330441334,1719411041450,-1304.0,0.0002032,2]
[330441335,1719411041460,-150.0,0.0002032,2]
[330441336,1719411041469,-547.0,0.0002032,2]
[330441337,1719411041480,-3200.0,0.0002032,2]
[330441338,1719411041491,-1983.0,0.0002032,2]
[330441339,1719411041500,-1661.0,0.0002032,2]
[330441340,1719411041510,-5798.0,0.0002032,2]
[330441341,1719411041519,-291.0,0.0002032,2]
[330441342,1719411041531,-31932.101,0.0002032,2]
[330441343,1719411041540,-1197.0,0.0002032,2]
[330441344,1719411041550,-168.64788992,0.00020567,2]
[330441345,1719411041560,-1141.0,0.000206,2]
[330441346,1719411041569,-613.3433341,0.00020773,2]
[330441347,1719411041579,-500.0,0.00020799,2]
[330441348,1719411041588,-500.0,0.00020799,2]
[330441349,1719411041598,-561.6794414,0.00020799,2]
[330441350,1719411041607,-47525.4655799,0.000208,3]
[330441351,1719411041617,-3960.45546499,0.00020866,3]
[330441352,1719411041626,-600.0,0.00020876,2]
[330441353,1719411041636,-166.53,0.00020929,2]
[330441354,1719411041645,-1250.0,0.00021,2]
[330441355,1719411041655,-1744.97643959,0.00021011,2]
[330441356,1719411041665,-167.117338,0.00021088,2]
[330441357,1719411041674,-7920.91092998,0.00021161,3]
[330441358,1719411041683,-3960.45546499,0.00021469,3]
[330441359,1719411041694,-3960.45546499,0.0002148,3]
[330441360,1719411041703,-400.0,0.0002149,2]
[330441361,1719411041713,-11881.366395,0.0002149,3]
[330441362,1719411041722,-18386.42027269,0.000215,2]
[330441363,1719411041731,-188.28303006,0.00021516,2]
[330441364,1719411041740,-167.117338,0.00021615,2]
[330441365,1719411041749,-600.0,0.00021639,2]
[330441366,1719411041759,-3107.73443509,0.00021643,2]
[330441367,1719411041768,-155.34,0.00021644,2]
[330441368,1719411041777,-377.9,0.00021644,2]
[330441369,1719411041787,-155.44,0.00021644,2]
[330441370,1719411041796,-587.8,0.00021645,2]
[330441371,1719411041806,-3960.45546499,0.00021688,3]
[330441372,1719411041815,-500.0,0.00021698,2]
[330441373,1719411041824,-500.0,0.00021706,2]
[330441374,1719411041833,-188.28303004,0.00021708,2]
[330441375,1719411041843,-500.0,0.00021715,2]
[330441376,1719411041852,-500.0,0.00021724,2]
[330441377,1719411041861,-500.0,0.00021733,2]
[330441378,1719411041870,-3960.45546499,0.00021739,3]
[330441379,1719411041880,-1012.87391772,0.00021741,2]
[330441380,1719411041889,-500.0,0.00021742,2]
[330441381,1719411041898,-500.0,0.0002175,2]
[330441382,1719411041908,-1054.20873751,0.00021758,2]
[330441383,1719411041917,-500.0,0.00021759,2]
[330441384,1719411041926,-500.0,0.00021768,2]
[330441385,1719411041936,-3960.45546499,0.00021768,3]
[330441386,1719411041946,-647.07170086,0.00021776,2]
[330441387,1719411041955,-159.45289812,0.00021776,2]
[330441388,1719411041964,-717.18626309,0.00021776,2]
[330441389,1719411041974,-500.0,0.00021777,2]
[330441390,1719411041983,-787.94090939,0.00021779,2]
[330441391,1719411041992,-7500.0,0.0002178,2]
[330441392,1719411042001,-500.0,0.00021786,2]
[330441393,1719411042011,-3960.45546499,0.00021786,3]
[330441394,1719411042020,-333.45934121,0.00021793,2]
[330441395,1719411042029,-333.45934121,0.00021793,2]
[330441396,1719411042038,-500.0,0.00021794,2]
[330441397,1719411042047,-1547.98591501,0.000218,2]
[330441398,1719411042057,-500.0,0.00021803,2]
[330441399,1719411042066,-500.0,0.00021812,2]
[330441400,1719411042075,-3960.45546499,0.00021812,3]
[330441401,1719411042084,-500.0,0.00021821,2]
[330441402,1719411042094,-500.0,0.00021823,2]
[330441403,1719411042103,-500.0,0.0002183,2]
[330441404,1719411042112,-792.0,0.00021833,2]
[330441405,1719411042121,-3960.45546499,0.00021869,3]
[330441406,1719411042131,-31683.6437199,0.0002187,3]
[330441407,1719411042139,-3960.45546499,0.00021871,3]